[Event "Live Chess"]
[Site "Chess.com"]
[Date "2023.05.20"]
[Round "-"]
[White "toog"]
[Black "JamesWallman"]
[Result "1-0"]
[WhiteElo "2638"]
[BlackElo "774"]
[TimeControl "300"]
[EndTime "10:41:53 PDT"]
[Termination "toog won on time"]

1. b4 {[%clk 0:04:55.6]} 1... e5 {[%clk 0:04:53.2]} 2. Bb2 {[%clk 0:04:54]} 2...
d6 {[%clk 0:04:46.9]} 3. c4 {[%clk 0:04:52.3]} 3... Nf6 {[%clk 0:04:43.8]} 4. g3
{[%clk 0:04:50.4]} 4... Be6 {[%clk 0:04:37.1]} 5. Bg2 {[%clk 0:04:45.8]} 5... c6
{[%clk 0:04:32.3]} 6. d3 {[%clk 0:04:43.4]} 6... Nbd7 {[%clk 0:04:24.4]} 7. Nf3
{[%clk 0:04:34.3]} 7... Be7 {[%clk 0:04:18.6]} 8. O-O {[%clk 0:04:25.9]} 8... h6
{[%clk 0:04:15.5]} 9. Nc3 {[%clk 0:04:20.9]} 9... O-O {[%clk 0:04:10.1]} 10. a4
{[%clk 0:04:18.2]} 10... a6 {[%clk 0:04:00]} 11. b5 {[%clk 0:04:13.3]} 11...
cxb5 {[%clk 0:03:56]} 12. axb5 {[%clk 0:04:13.2]} 12... axb5 {[%clk 0:03:47.9]}
13. Nxb5 {[%clk 0:04:11.3]} 13... Qb6 {[%clk 0:03:27]} 14. Nd2 {[%clk 0:03:56]}
14... Nc5 {[%clk 0:03:18.5]} 15. Qc2 {[%clk 0:03:47]} 15... Nh7 {[%clk
0:03:01.1]} 16. Rfb1 {[%clk 0:03:39]} 16... f5 {[%clk 0:02:56.7]} 17. Bc3 {[%clk
0:03:30.9]} 17... Bg5 {[%clk 0:02:40.5]} 18. h4 {[%clk 0:03:26.5]} 18... Be7
{[%clk 0:02:35.7]} 19. Nb3 {[%clk 0:03:22.8]} 19... Nxb3 {[%clk 0:02:30.8]} 20.
Qxb3 {[%clk 0:03:17.9]} 20... Nf6 {[%clk 0:02:13.1]} 21. Na7 {[%clk 0:03:14.3]}
21... Qxb3 {[%clk 0:02:02.3]} 22. Rxb3 {[%clk 0:03:14.2]} 22... Rfb8 {[%clk
0:01:43.9]} 23. Rxb7 {[%clk 0:03:10.2]} 23... Rxb7 {[%clk 0:01:39]} 24. Bxb7
{[%clk 0:03:10.1]} 24... Rb8 {[%clk 0:01:34.6]} 25. Bg2 {[%clk 0:03:08.5]} 25...
Nd7 {[%clk 0:01:22.5]} 26. Nc6 {[%clk 0:03:05.6]} 26... Re8 {[%clk 0:01:15.6]}
27. Ra7 {[%clk 0:03:03.3]} 27... Kh7 {[%clk 0:00:45.2]} 28. Bb4 {[%clk 0:03:01]}
28... h5 {[%clk 0:00:34.7]} 29. Nxe7 {[%clk 0:02:58.1]} 29... Rxe7 {[%clk
0:00:28.9]} 30. Bxd6 {[%clk 0:02:58]} 30... Rf7 {[%clk 0:00:23.1]} 31. c5 {[%clk
0:02:55.6]} 31... Nf6 {[%clk 0:00:10.6]} 32. Rxf7 {[%clk 0:02:55.5]} 32... Bxf7
{[%clk 0:00:06.3]} 33. Bxe5 {[%clk 0:02:55.4]} 1-0

[Event "Live Chess"]
[Site "Chess.com"]
[Date "2023.05.20"]
[Round "-"]
[White "KeithArkell"]
[Black "OceanFloater"]
[Result "1-0"]
[WhiteElo "2612"]
[BlackElo "988"]
[TimeControl "300"]
[EndTime "10:41:59 PDT"]
[Termination "KeithArkell won by checkmate"]

1. d4 {[%clk 0:04:59]} 1... c6 {[%clk 0:04:59.7]} 2. Nf3 {[%clk 0:04:57.5]} 2...
d5 {[%clk 0:04:59.4]} 3. c4 {[%clk 0:04:54.7]} 3... Nf6 {[%clk 0:04:59.2]} 4.
Nc3 {[%clk 0:04:51.8]} 4... dxc4 {[%clk 0:04:58]} 5. e3 {[%clk 0:04:50.1]} 5...
e6 {[%clk 0:04:55.5]} 6. Bxc4 {[%clk 0:04:49.2]} 6... b5 {[%clk 0:04:52.9]} 7.
Bd3 {[%clk 0:04:47.4]} 7... Nbd7 {[%clk 0:04:49.2]} 8. a4 {[%clk 0:04:46.2]}
8... a6 {[%clk 0:04:46.1]} 9. axb5 {[%clk 0:04:44.5]} 9... cxb5 {[%clk
0:04:45.2]} 10. Bxb5 {[%clk 0:04:42.7]} 10... Bb4 {[%clk 0:04:40]} 11. O-O
{[%clk 0:04:39.8]} 11... O-O {[%clk 0:04:34.6]} 12. Bd2 {[%clk 0:04:36.1]} 12...
Bxc3 {[%clk 0:04:29.7]} 13. Bxc3 {[%clk 0:04:33]} 13... Bb7 {[%clk 0:04:29.4]}
14. Be2 {[%clk 0:04:31.7]} 14... Nb6 {[%clk 0:04:17]} 15. Qb3 {[%clk 0:04:30.4]}
15... Qd7 {[%clk 0:04:14]} 16. Qxb6 {[%clk 0:04:28.9]} 16... Bxf3 {[%clk
0:04:11.4]} 17. Bxf3 {[%clk 0:04:26.9]} 17... Rfb8 {[%clk 0:04:08.5]} 18. Qa5
{[%clk 0:04:22]} 18... Rb5 {[%clk 0:04:05.8]} 19. Qa4 {[%clk 0:04:19.1]} 19...
Ra7 {[%clk 0:03:56.8]} 20. h3 {[%clk 0:04:17.2]} 20... Rbb7 {[%clk 0:03:45.2]}
21. Bxb7 {[%clk 0:04:14.9]} 21... Qxb7 {[%clk 0:03:44]} 22. d5 {[%clk
0:04:11.6]} 22... Nxd5 {[%clk 0:03:36.8]} 23. Qe8# {[%clk 0:04:09.7]} 1-0

[Event "Live Chess"]
[Site "Chess.com"]
[Date "2023.05.20"]
[Round "-"]
[White "GEMdzq"]
[Black "ickabod1100"]
[Result "1-0"]
[WhiteElo "2244"]
[BlackElo "932"]
[TimeControl "300"]
[EndTime "10:42:01 PDT"]
[Termination "GEMdzq won by checkmate"]

1. e4 {[%clk 0:04:58.9]} 1... e5 {[%clk 0:04:58]} 2. Nf3 {[%clk 0:04:57.4]} 2...
Nc6 {[%clk 0:04:57]} 3. Bb5 {[%clk 0:04:56.9]} 3... Nf6 {[%clk 0:04:54.4]} 4.
O-O {[%clk 0:04:54.6]} 4... h6 {[%clk 0:04:51.4]} 5. d4 {[%clk 0:04:47]} 5...
Nxd4 {[%clk 0:04:44.6]} 6. Nxd4 {[%clk 0:04:43.8]} 6... exd4 {[%clk 0:04:43.2]}
7. e5 {[%clk 0:04:40.7]} 7... Ng8 {[%clk 0:04:34.6]} 8. Qxd4 {[%clk 0:04:38.3]}
8... f6 {[%clk 0:04:32.2]} 9. Bd3 {[%clk 0:04:31.6]} 9... fxe5 {[%clk
0:04:28.7]} 10. Bg6+ {[%clk 0:04:30]} 10... Ke7 {[%clk 0:04:26]} 11. Qxe5#
{[%clk 0:04:29]} 1-0

[Event "Live Chess"]
[Site "Chess.com"]
[Date "2023.05.20"]
[Round "-"]
[White "Bot_Boy"]
[Black "worldchessleaguelive"]
[Result "0-1"]
[WhiteElo "325"]
[BlackElo "1413"]
[TimeControl "300"]
[EndTime "10:42:02 PDT"]
[Termination "worldchessleaguelive won on time"]

1. c4 {[%clk 0:04:56.2]} 1... c5 {[%clk 0:04:58.6]} 2. Nc3 {[%clk 0:04:54.4]}
2... Nc6 {[%clk 0:04:57.8]} 3. Nf3 {[%clk 0:04:52.6]} 3... Nf6 {[%clk
0:04:56.8]} 4. e4 {[%clk 0:04:50.5]} 4... e5 {[%clk 0:04:55]} 5. d3 {[%clk
0:04:45.7]} 5... d6 {[%clk 0:04:53.6]} 6. Bg5 {[%clk 0:04:42.3]} 6... Be7 {[%clk
0:04:52.8]} 7. h4 {[%clk 0:04:39.5]} 7... h6 {[%clk 0:04:50.8]} 8. Bxf6 {[%clk
0:04:37.5]} 8... gxf6 {[%clk 0:04:49.5]} 9. h5 {[%clk 0:04:31.7]} 9... Bg4
{[%clk 0:04:48]} 10. Be2 {[%clk 0:04:11.6]} 10... Qb6 {[%clk 0:04:44.7]} 11. Qd2
{[%clk 0:03:54.8]} 11... Bxf3 {[%clk 0:04:38.6]} 12. Bxf3 {[%clk 0:03:53]} 12...
Nd4 {[%clk 0:04:37.7]} 13. b3 {[%clk 0:03:42.2]} 13... O-O-O {[%clk 0:04:29.7]}
14. Bg4+ {[%clk 0:03:36.3]} 14... Kb8 {[%clk 0:04:23]} 15. Nd5 {[%clk
0:03:29.8]} 15... Qa6 {[%clk 0:03:32.5]} 16. Nxe7 {[%clk 0:03:23.9]} 16... Rde8
{[%clk 0:03:31.6]} 17. Nd5 {[%clk 0:03:04.4]} 17... f5 {[%clk 0:03:23.1]} 18.
exf5 {[%clk 0:02:46.7]} 18... e4 {[%clk 0:03:20.4]} 19. O-O {[%clk 0:02:42.4]}
19... exd3 {[%clk 0:03:14.1]} 20. Rae1 {[%clk 0:02:18.8]} 20... Reg8 {[%clk
0:03:01.4]} 21. Qf4 {[%clk 0:01:54.5]} 21... d2 {[%clk 0:02:26.2]} 22. Rd1
{[%clk 0:01:10.2]} 22... b5 {[%clk 0:02:09]} 23. Rxd2 {[%clk 0:00:50.1]} 23...
bxc4 {[%clk 0:02:05.9]} 24. f6 {[%clk 0:00:33.5]} 24... c3 {[%clk 0:01:56.1]}
25. Rxd4 {[%clk 0:00:18.9]} 25... cxd4 {[%clk 0:01:50.4]} 26. Qxd4 {[%clk
0:00:15]} 26... c2 {[%clk 0:01:31.8]} 27. Ne7 {[%clk 0:00:09.5]} 27... Qxf1+
{[%clk 0:01:29.2]} 28. Kxf1 {[%clk 0:00:07.8]} 28... c1=Q+ {[%clk 0:01:28]} 29.
Ke2 {[%clk 0:00:06.6]} 29... Qc2+ {[%clk 0:01:06]} 30. Kf3 {[%clk 0:00:04.6]}
30... Rxg4 {[%clk 0:00:49.5]} 31. Qxd6+ {[%clk 0:00:03.2]} 31... Qc7 {[%clk
0:00:44.3]} 32. Qxc7+ {[%clk 0:00:01.8]} 32... Kxc7 {[%clk 0:00:42.7]} 33. Nd5+
{[%clk 0:00:01.7]} 33... Kd6 {[%clk 0:00:40.5]} 34. Kxg4 {[%clk 0:00:01.2]}
34... Kxd5 {[%clk 0:00:39.5]} 35. Kf3 {[%clk 0:00:00.2]} 35... Rc8 {[%clk
0:00:36.1]} 36. g3 {[%clk 0:00:00.1]} 36... Rc2 {[%clk 0:00:34.8]} 0-1

[Event "Live Chess"]
[Site "Chess.com"]
[Date "2023.05.20"]
[Round "-"]
[White "lateforthesky"]
[Black "Davidagye"]
[Result "1-0"]
[WhiteElo "2072"]
[BlackElo "1655"]
[TimeControl "300"]
[EndTime "10:42:05 PDT"]
[Termination "lateforthesky won by resignation"]

1. e4 {[%clk 0:04:59.1]} 1... Nf6 {[%clk 0:04:58]} 2. e5 {[%clk 0:04:57.4]} 2...
Nd5 {[%clk 0:04:57.6]} 3. c4 {[%clk 0:04:55.4]} 3... Nb6 {[%clk 0:04:56.6]} 4.
d4 {[%clk 0:04:54.4]} 4... d6 {[%clk 0:04:56.1]} 5. exd6 {[%clk 0:04:50.1]} 5...
cxd6 {[%clk 0:04:55.2]} 6. Nc3 {[%clk 0:04:48.4]} 6... g6 {[%clk 0:04:54.7]} 7.
Be3 {[%clk 0:04:43.3]} 7... Bg7 {[%clk 0:04:53.9]} 8. Rc1 {[%clk 0:04:41.5]}
8... O-O {[%clk 0:04:53.1]} 9. b3 {[%clk 0:04:40.3]} 9... Nc6 {[%clk 0:04:51.1]}
10. Be2 {[%clk 0:04:38.3]} 10... f5 {[%clk 0:04:45.1]} 11. f4 {[%clk 0:04:33.9]}
11... Qe8 {[%clk 0:04:38.4]} 12. d5 {[%clk 0:04:19.4]} 12... Nd8 {[%clk
0:04:33.5]} 13. Nf3 {[%clk 0:04:18.1]} 13... e5 {[%clk 0:04:31.4]} 14. O-O
{[%clk 0:04:01.2]} 14... Bd7 {[%clk 0:04:20.7]} 15. Qd2 {[%clk 0:03:59.1]} 15...
Nf7 {[%clk 0:04:14.2]} 16. a4 {[%clk 0:03:51.6]} 16... Nc8 {[%clk 0:03:42.8]}
17. Rfe1 {[%clk 0:03:34.2]} 17... a6 {[%clk 0:03:40.6]} 18. Bf1 {[%clk
0:03:29.2]} 18... h6 {[%clk 0:03:32]} 19. fxe5 {[%clk 0:03:25.9]} 19... dxe5
{[%clk 0:03:29.8]} 20. Bc5 {[%clk 0:03:15.9]} 20... Ne7 {[%clk 0:03:21.4]} 21.
Nd4 {[%clk 0:03:05.8]} 21... Rc8 {[%clk 0:03:16.2]} 22. Ba3 {[%clk 0:03:01.6]}
22... Kh7 {[%clk 0:03:05.2]} 23. Ne6 {[%clk 0:02:49.4]} 23... Bxe6 {[%clk
0:02:56.2]} 24. dxe6 {[%clk 0:02:48.5]} 24... Ng5 {[%clk 0:02:53.4]} 25. Nd5
{[%clk 0:02:41.2]} 25... Bf6 {[%clk 0:02:46.8]} 26. Nxf6+ {[%clk 0:02:38.9]}
26... Rxf6 {[%clk 0:02:45.5]} 27. Rxe5 {[%clk 0:02:37.9]} 27... Ne4 {[%clk
0:02:39.7]} 28. Qd7 {[%clk 0:02:32.5]} 28... Rf7 {[%clk 0:02:17.6]} 29. Qxe8
{[%clk 0:02:07.1]} 29... Rxe8 {[%clk 0:01:56]} 30. exf7 {[%clk 0:02:05.8]} 1-0

[Event "Live Chess"]
[Site "Chess.com"]
[Date "2023.05.20"]
[Round "-"]
[White "ClassyChameleon"]
[Black "booktrunk"]
[Result "1-0"]
[WhiteElo "1062"]
[BlackElo "1333"]
[TimeControl "300"]
[EndTime "10:42:06 PDT"]
[Termination "ClassyChameleon won by resignation"]

1. e4 {[%clk 0:04:59.3]} 1... d5 {[%clk 0:04:58.9]} 2. exd5 {[%clk 0:04:57.5]}
2... Qxd5 {[%clk 0:04:55]} 3. Nf3 {[%clk 0:04:56]} 3... e5 {[%clk 0:04:50.3]} 4.
g3 {[%clk 0:04:49.6]} 4... Bg4 {[%clk 0:04:46.3]} 5. Bg2 {[%clk 0:04:48.5]} 5...
e4 {[%clk 0:04:44]} 6. c3 {[%clk 0:04:41.7]} 6... exf3 {[%clk 0:04:41.3]} 7.
Qa4+ {[%clk 0:04:39]} 7... c6 {[%clk 0:04:35.9]} 8. Qxg4 {[%clk 0:04:37.9]} 8...
Qe5+ {[%clk 0:04:32]} 9. Kf1 {[%clk 0:04:32.2]} 9... Qe2+ {[%clk 0:04:30.3]} 10.
Kg1 {[%clk 0:04:27.5]} 10... fxg2 {[%clk 0:04:29.5]} 11. Kxg2 {[%clk 0:04:26.3]}
11... Nf6 {[%clk 0:04:25.4]} 12. Qxe2+ {[%clk 0:04:25.3]} 1-0

[Event "Live Chess"]
[Site "Chess.com"]
[Date "2023.05.20"]
[Round "-"]
[White "whitedjohn"]
[Black "Horseymobile"]
[Result "1-0"]
[WhiteElo "1670"]
[BlackElo "1247"]
[TimeControl "300"]
[EndTime "10:42:09 PDT"]
[Termination "whitedjohn won by resignation"]

1. e4 {[%clk 0:04:56.8]} 1... c6 {[%clk 0:04:58.7]} 2. d4 {[%clk 0:04:54.2]}
2... d5 {[%clk 0:04:57.9]} 3. exd5 {[%clk 0:04:53.1]} 3... cxd5 {[%clk
0:04:55.5]} 4. Bd3 {[%clk 0:04:51.5]} 4... g6 {[%clk 0:04:54.5]} 5. c3 {[%clk
0:04:50.2]} 5... Bg7 {[%clk 0:04:54]} 6. Bf4 {[%clk 0:04:43.8]} 6... Nf6 {[%clk
0:04:50.4]} 7. Nf3 {[%clk 0:04:40.6]} 7... O-O {[%clk 0:04:49.3]} 8. O-O {[%clk
0:04:36.8]} 8... Nc6 {[%clk 0:04:48.2]} 9. Nbd2 {[%clk 0:04:33.8]} 9... Bg4
{[%clk 0:04:40.5]} 10. h3 {[%clk 0:04:27.9]} 10... Bd7 {[%clk 0:04:36.7]} 11.
Re1 {[%clk 0:04:23.5]} 11... Re8 {[%clk 0:04:27.9]} 12. Ne5 {[%clk 0:04:15.7]}
12... Nh5 {[%clk 0:04:19.3]} 13. Nxc6 {[%clk 0:03:55.1]} 13... bxc6 {[%clk
0:04:15.9]} 14. Bh2 {[%clk 0:03:52.6]} 14... Qb6 {[%clk 0:03:43.2]} 15. Rb1
{[%clk 0:03:43.6]} 15... c5 {[%clk 0:03:32.2]} 16. dxc5 {[%clk 0:03:40.1]} 16...
Qxc5 {[%clk 0:03:30.3]} 17. Nb3 {[%clk 0:03:33.3]} 17... Qb6 {[%clk 0:03:20.5]}
18. Be2 {[%clk 0:03:17.6]} 18... Bc6 {[%clk 0:03:10]} 19. Bxh5 {[%clk
0:03:13.6]} 19... gxh5 {[%clk 0:03:06.6]} 20. Qxh5 {[%clk 0:03:09.8]} 20... f6
{[%clk 0:02:41.7]} 21. Re6 {[%clk 0:02:58.6]} 21... Qb5 {[%clk 0:02:18.5]} 22.
Nd4 {[%clk 0:02:51.7]} 22... Qd3 {[%clk 0:02:17.2]} 23. Rbe1 {[%clk 0:02:44.4]}
1-0

[Event "Live Chess"]
[Site "Chess.com"]
[Date "2023.05.20"]
[Round "-"]
[White "LodeshChess"]
[Black "Tushinskiy"]
[Result "0-1"]
[WhiteElo "927"]
[BlackElo "2106"]
[TimeControl "300"]
[EndTime "10:42:14 PDT"]
[Termination "Tushinskiy won by resignation"]

1. e4 {[%clk 0:04:59.6]} 1... e5 {[%clk 0:04:58]} 2. Nf3 {[%clk 0:04:58.6]} 2...
d6 {[%clk 0:04:57.9]} 3. d4 {[%clk 0:04:56.8]} 3... Bg4 {[%clk 0:04:57.8]} 4.
Nbd2 {[%clk 0:04:55.1]} 4... Nd7 {[%clk 0:04:56.4]} 5. h3 {[%clk 0:04:54.5]}
5... Bh5 {[%clk 0:04:55.1]} 6. g4 {[%clk 0:04:53.4]} 6... Bg6 {[%clk 0:04:54]}
7. dxe5 {[%clk 0:04:51.1]} 7... dxe5 {[%clk 0:04:52.9]} 8. Bb5 {[%clk 0:04:49]}
8... c6 {[%clk 0:04:51.9]} 9. Bc4 {[%clk 0:04:47.1]} 9... Ngf6 {[%clk
0:04:50.6]} 10. Bd3 {[%clk 0:04:38.7]} 10... Qc7 {[%clk 0:04:48.8]} 11. Nb3
{[%clk 0:04:37.5]} 11... Be7 {[%clk 0:04:47.4]} 12. Bg5 {[%clk 0:04:36.5]} 12...
O-O {[%clk 0:04:46.3]} 13. Qd2 {[%clk 0:04:35.8]} 13... b5 {[%clk 0:04:39.7]}
14. Qe3 {[%clk 0:04:21.9]} 14... a5 {[%clk 0:04:36.6]} 15. O-O-O {[%clk
0:04:19.1]} 15... a4 {[%clk 0:04:35]} 16. Nbd2 {[%clk 0:04:18.1]} 16... Rfb8
{[%clk 0:04:30]} 17. h4 {[%clk 0:04:16.4]} 17... h5 {[%clk 0:04:22.4]} 18. gxh5
{[%clk 0:04:12.7]} 18... Bxh5 {[%clk 0:04:20.2]} 19. Rdg1 {[%clk 0:04:07.2]}
19... Kf8 {[%clk 0:04:17.2]} 20. Bxf6 {[%clk 0:04:06.2]} 20... Bxf6 {[%clk
0:04:14.8]} 21. Ng5 {[%clk 0:03:57.1]} 21... c5 {[%clk 0:04:10.5]} 22. Nh7+
{[%clk 0:03:55.5]} 22... Ke7 {[%clk 0:04:09.4]} 23. Nxf6 {[%clk 0:03:53.7]}
23... gxf6 {[%clk 0:04:07.9]} 24. Qh6 {[%clk 0:03:36.9]} 24... c4 {[%clk
0:04:03.8]} 25. Bxc4 {[%clk 0:03:07.7]} 25... bxc4 {[%clk 0:04:01]} 26. Qxh5
{[%clk 0:03:07.1]} 26... c3 {[%clk 0:03:59.8]} 27. Nf3 {[%clk 0:02:52.3]} 27...
Rxb2 {[%clk 0:03:54.3]} 28. Rg7 {[%clk 0:02:41.6]} 28... Rf8 {[%clk 0:03:51.6]}
29. Ng5 {[%clk 0:02:06.7]} 29... fxg5 {[%clk 0:03:48.5]} 30. Qxg5+ {[%clk
0:02:06.4]} 30... Ke8 {[%clk 0:03:44.6]} 31. Rg8 {[%clk 0:02:01.5]} 31... Qd6
{[%clk 0:03:37.2]} 32. Rd1 {[%clk 0:01:30.4]} 32... Rb1+ {[%clk 0:03:33.4]} 33.
Kxb1 {[%clk 0:01:28.8]} 33... Qb4+ {[%clk 0:03:26.6]} 0-1

[Event "Live Chess"]
[Site "Chess.com"]
[Date "2023.05.20"]
[Round "-"]
[White "ranvir123"]
[Black "Hacker_2009"]
[Result "0-1"]
[WhiteElo "886"]
[BlackElo "1914"]
[TimeControl "300"]
[EndTime "10:42:15 PDT"]
[Termination "Hacker_2009 won by resignation"]

1. e4 {[%clk 0:04:57.8]} 1... c5 {[%clk 0:04:58.5]} 2. Nc3 {[%clk 0:04:52.5]}
2... d6 {[%clk 0:04:57.4]} 3. d4 {[%clk 0:04:51.3]} 3... cxd4 {[%clk 0:04:56.3]}
4. Qxd4 {[%clk 0:04:50.7]} 4... Nc6 {[%clk 0:04:55.4]} 5. Qe3 {[%clk 0:04:49.1]}
5... Nf6 {[%clk 0:04:54.5]} 6. Nf3 {[%clk 0:04:48.6]} 6... e6 {[%clk 0:04:53.6]}
7. Bb5 {[%clk 0:04:48]} 7... Bd7 {[%clk 0:04:52.4]} 8. O-O {[%clk 0:04:47.4]}
8... Be7 {[%clk 0:04:50.5]} 9. e5 {[%clk 0:04:46.8]} 9... dxe5 {[%clk
0:04:47.1]} 10. Bxc6 {[%clk 0:04:45.6]} 10... Bxc6 {[%clk 0:04:45.5]} 11. Nxe5
{[%clk 0:04:44.5]} 11... Qc7 {[%clk 0:04:44.5]} 12. Nxc6 {[%clk 0:04:43]} 12...
Qxc6 {[%clk 0:04:43.6]} 13. Rd1 {[%clk 0:04:36]} 13... O-O {[%clk 0:04:43]} 14.
Qh3 {[%clk 0:04:29.4]} 14... Rfd8 {[%clk 0:04:41.3]} 15. Bg5 {[%clk 0:04:27.5]}
15... Qc5 {[%clk 0:04:24.5]} 16. Bxf6 {[%clk 0:04:21.1]} 16... Bxf6 {[%clk
0:04:23.3]} 17. Ne4 {[%clk 0:04:19.7]} 17... Qe5 {[%clk 0:04:18.8]} 18. Nxf6+
{[%clk 0:04:17.9]} 18... Qxf6 {[%clk 0:04:18]} 19. c3 {[%clk 0:04:14.4]} 19...
Qe5 {[%clk 0:04:12.6]} 20. Qe3 {[%clk 0:03:55.6]} 20... Qxe3 {[%clk 0:04:09.9]}
21. fxe3 {[%clk 0:03:54.8]} 21... Kf8 {[%clk 0:04:09]} 22. Kf2 {[%clk
0:03:53.9]} 22... Ke7 {[%clk 0:04:08.2]} 23. Rd4 {[%clk 0:03:51.5]} 23... e5
{[%clk 0:04:05]} 24. Rdd1 {[%clk 0:03:33]} 24... Ke6 {[%clk 0:04:00.7]} 25. Kf3
{[%clk 0:03:31.8]} 25... f5 {[%clk 0:03:32.7]} 26. e4 {[%clk 0:03:30.4]} 26...
f4 {[%clk 0:03:28.1]} 27. g3 {[%clk 0:03:29]} 27... g5 {[%clk 0:03:26.5]} 28.
gxf4 {[%clk 0:03:27.3]} 28... gxf4 {[%clk 0:03:25.1]} 29. h4 {[%clk 0:03:24]}
29... Rg8 {[%clk 0:03:23]} 30. Rg1 {[%clk 0:03:20.4]} 30... Rad8 {[%clk
0:03:19.8]} 31. Rad1 {[%clk 0:03:17.9]} 31... Rxd1 {[%clk 0:03:17]} 32. Rxd1
{[%clk 0:03:15.3]} 32... Rg3+ {[%clk 0:03:15.2]} 33. Kf2 {[%clk 0:03:12.3]}
33... Rh3 {[%clk 0:03:14.5]} 34. Rg1 {[%clk 0:03:07.3]} 34... Rxh4 {[%clk
0:03:12.7]} 35. Rg7 {[%clk 0:03:06.3]} 35... Rh2+ {[%clk 0:03:12]} 36. Kf3
{[%clk 0:03:03.4]} 36... Rxb2 {[%clk 0:03:11.5]} 37. Rxh7 {[%clk 0:03:02.1]}
37... b6 {[%clk 0:03:07.1]} 38. Rxa7 {[%clk 0:02:59.3]} 38... Rc2 {[%clk
0:03:03]} 39. Ra6 {[%clk 0:02:55.8]} 39... Rxc3+ {[%clk 0:03:02.3]} 40. Kg4
{[%clk 0:02:54.1]} 40... Rg3+ {[%clk 0:03:01]} 41. Kh4 {[%clk 0:02:52.9]} 41...
Rg1 {[%clk 0:02:56.6]} 42. Rxb6+ {[%clk 0:02:50.7]} 42... Ke7 {[%clk 0:02:50.6]}
43. Rb2 {[%clk 0:02:48.1]} 43... Kd6 {[%clk 0:02:47]} 44. a4 {[%clk 0:02:42.5]}
44... Kc5 {[%clk 0:02:41.3]} 45. a5 {[%clk 0:02:41.1]} 45... Kd4 {[%clk
0:02:40.9]} 46. a6 {[%clk 0:02:40.2]} 46... Ra1 {[%clk 0:02:40.3]} 47. Rb6
{[%clk 0:02:34.4]} 47... Kxe4 {[%clk 0:02:38.9]} 48. Re6 {[%clk 0:02:31.4]}
48... Kf5 {[%clk 0:02:34.1]} 49. Rc6 {[%clk 0:02:26.3]} 49... f3 {[%clk
0:02:27.9]} 50. Kg3 {[%clk 0:02:25.4]} 50... Ke4 {[%clk 0:02:22.5]} 51. Rc4+
{[%clk 0:02:22.6]} 51... Kd3 {[%clk 0:02:13.6]} 52. Rc6 {[%clk 0:02:19.6]} 52...
e4 {[%clk 0:02:12.7]} 53. Rd6+ {[%clk 0:02:16.3]} 53... Ke2 {[%clk 0:02:10.9]}
54. Re6 {[%clk 0:02:12.9]} 54... e3 {[%clk 0:02:08.5]} 55. Kf4 {[%clk 0:02:08]}
55... f2 {[%clk 0:02:07.7]} 56. Rxe3+ {[%clk 0:02:06.7]} 56... Kd2 {[%clk
0:02:06.3]} 57. Rf3 {[%clk 0:02:04.8]} 57... f1=Q {[%clk 0:02:04.4]} 58. Rxf1
{[%clk 0:02:01.4]} 58... Rxf1+ {[%clk 0:02:03.9]} 59. Ke4 {[%clk 0:01:59.2]}
59... Ra1 {[%clk 0:02:03.8]} 0-1

[Event "Live Chess"]
[Site "Chess.com"]
[Date "2023.05.20"]
[Round "-"]
[White "alexlines8"]
[Black "Tema1107"]
[Result "0-1"]
[WhiteElo "1248"]
[BlackElo "1965"]
[TimeControl "300"]
[EndTime "10:42:17 PDT"]
[Termination "Tema1107 won by resignation"]

1. e4 {[%clk 0:04:56.6]} 1... c5 {[%clk 0:04:58.9]} 2. c3 {[%clk 0:04:52]} 2...
Nf6 {[%clk 0:04:54.9]} 3. e5 {[%clk 0:04:34.7]} 3... Nd5 {[%clk 0:04:53.7]} 4.
d4 {[%clk 0:04:30.4]} 4... cxd4 {[%clk 0:04:53.6]} 5. cxd4 {[%clk 0:04:29]} 5...
Nc6 {[%clk 0:04:53.1]} 6. Nc3 {[%clk 0:04:21.2]} 6... Nxc3 {[%clk 0:04:50.9]} 7.
bxc3 {[%clk 0:04:17.4]} 7... g6 {[%clk 0:04:50]} 8. Nf3 {[%clk 0:04:13.9]} 8...
d6 {[%clk 0:04:48.4]} 9. exd6 {[%clk 0:04:07.8]} 9... Qxd6 {[%clk 0:04:48.3]}
10. Bd3 {[%clk 0:04:04.2]} 10... Bg7 {[%clk 0:04:45.4]} 11. O-O {[%clk
0:04:02.1]} 11... O-O {[%clk 0:04:43.4]} 12. Be3 {[%clk 0:03:58.8]} 12... Bg4
{[%clk 0:04:40]} 13. Be2 {[%clk 0:03:56.2]} 13... Rad8 {[%clk 0:04:34.7]} 14.
Rb1 {[%clk 0:03:51.5]} 14... b6 {[%clk 0:03:47]} 15. Qd2 {[%clk 0:03:47.1]}
15... e5 {[%clk 0:03:10.4]} 16. Rfd1 {[%clk 0:03:01.8]} 16... exd4 {[%clk
0:03:01.8]} 17. cxd4 {[%clk 0:02:58.2]} 17... Rfe8 {[%clk 0:02:17.6]} 18. h3
{[%clk 0:02:38]} 18... Bf5 {[%clk 0:02:09.9]} 19. Rbc1 {[%clk 0:02:22.3]} 19...
Ne7 {[%clk 0:01:56.8]} 20. Bb5 {[%clk 0:02:11.2]} 20... Bd7 {[%clk 0:01:37]} 21.
Bxd7 {[%clk 0:02:03.3]} 21... Qxd7 {[%clk 0:01:36.9]} 22. Rc3 {[%clk 0:01:51.9]}
22... Nd5 {[%clk 0:01:32.3]} 23. Ra3 {[%clk 0:01:43.8]} 23... a5 {[%clk
0:01:03.9]} 24. Re1 {[%clk 0:01:22.8]} 24... Bf8 {[%clk 0:01:00.1]} 25. Rb3
{[%clk 0:01:15.2]} 25... Bb4 {[%clk 0:00:56.4]} 26. Qd1 {[%clk 0:00:48.8]} 26...
Bxe1 {[%clk 0:00:52.2]} 27. Qxe1 {[%clk 0:00:45.9]} 27... a4 {[%clk 0:00:34.8]}
28. Rb5 {[%clk 0:00:27.3]} 28... Qxb5 {[%clk 0:00:32.2]} 0-1